bitfinex/quotes_ETHUSD_20240602
["timestamp","ask_amount","ask_price","bid_price","bid_amount"]
[1717333226561,2.63848,3790.1,3789.0,2.63918]
[1717333226762,2.63848,3790.1,3789.2,2.63905]
[1717333226963,0.09496544,3790.0,3789.2,2.63905]
[1717333227471,0.09496544,3790.0,3788.9,2.4491]
[1717333227944,2.4448,3789.8,3788.8,2.63931]
[1717333228331,0.09529571,3789.7,3788.8,2.63931]
[1717333229257,2.63862,3789.9,3788.8,2.63931]
[1717333229474,0.09529571,3789.6,3788.8,2.63931]
[1717333229643,2.63862,3789.9,3788.8,2.63931]
[1717333229840,0.09519251,3789.5,3788.8,2.63931]
[1717333230052,2.63862,3789.9,3788.8,2.63931]
[1717333230370,0.09519251,3789.4,3789.0,2.63916]
[1717333230539,2.63862,3789.9,3789.0,2.63916]
[1717333230746,2.63833,3790.3,3789.2,2.63907]
[1717333230964,7.32,3790.4,3789.2,2.63907]
[1717333231442,7.32,3790.4,3789.5,2.63883]
[1717333231443,0.09530601,3790.3,3789.5,2.63883]
[1717333231642,0.09530601,3790.3,3789.6,2.4491]
[1717333231843,2.63779,3791.1,3789.6,2.4491]
[1717333232264,0.09572914,3791.0,3789.6,2.4491]
[1717333233031,0.09572914,3791.0,3790.0,2.63849]
[1717333235933,2.63792,3790.9,3790.0,2.63849]
[1717333236333,0.09606266,3790.8,3790.0,2.63849]
[1717333240139,2.63811,3790.6,3789.6,2.63878]
[1717333240372,2.63811,3790.6,3789.2,3.0]
[1717333240373,3.15600727,3790.6,3789.2,2.63903]
[1717333240575,0.09594575,3790.5,3789.2,2.63903]
[1717333240786,2.63827,3790.4,3789.2,2.63903]
[1717333240937,0.09587354,3790.3,3789.2,2.63903]
[1717333244385,2.4448,3790.2,3789.2,2.63903]
[1717333244767,0.09587354,3790.1,3789.2,2.63903]
[1717333245139,2.73435354,3790.1,3788.8,2.6393]
[1717333245474,2.63867,3789.8,3788.8,2.6393]
[1717333245677,2.2667,3789.7,3788.8,2.6393]
[1717333245878,2.36238784,3789.7,3788.8,2.6393]
[1717333247354,2.6388,3789.6,3788.5,2.4491]
[1717333247680,0.09539548,3789.5,3788.5,3.0]
[1717333248259,0.09539548,3789.5,3788.6,2.63947]
[1717333248459,2.63895,3789.4,3788.2,5.0516298]
[1717333248650,2.63895,3789.4,3788.3,3.0]
[1717333249048,0.09539548,3789.3,3788.3,3.0]
[1717333249249,0.09539548,3789.3,3788.4,2.63958]
[1717333250262,4.90578,3789.2,3788.2,0.0383098]
[1717333250789,0.09508864,3789.1,3788.2,0.0383098]
[1717333252146,4.90578,3789.2,3788.2,0.0383098]
[1717333258065,4.90578,3789.2,3788.3,2.63967]
[1717333259596,2.63908,3789.2,3788.3,2.63967]
[1717333259797,2.2667,3789.1,3788.2,0.0383098]
[1717333259963,2.2667,3788.9,3788.2,0.0383098]
[1717333260166,0.09504391,3788.8,3788.2,0.0383098]
[1717333261098,2.2667,3788.7,3788.2,0.0383098]
[1717333261503,0.09505767,3788.6,3788.2,0.0383098]
[1717333261804,2.63964,3788.4,3788.2,0.0383098]
[1717333262398,2.36150991,3788.3,3788.2,0.0383098]
[1717333262892,2.8616249,3788.3,3788.2,0.0383098]
[1717333273888,5.8616249,3788.3,3788.2,0.0383098]
[1717333275180,6.43266821,3788.3,3788.2,0.0383098]
[1717333275894,5.8616249,3788.3,3788.2,0.0383098]
[1717333280936,6.43260793,3788.3,3788.2,0.0383098]
[1717333281238,5.8616249,3788.3,3788.2,0.0383098]
[1717333281948,6.43260711,3788.3,3788.2,0.0383098]
[1717333282300,6.43260683,3788.3,3788.2,0.0383098]
[1717333282602,5.8616249,3788.3,3788.2,0.0383098]
[1717333282911,6.43259793,3788.3,3788.2,0.0383098]
[1717333283115,5.8616249,3788.3,3788.2,0.0383098]
[1717333283409,6.4326003,3788.3,3788.2,0.0383098]
[1717333283719,5.8616249,3788.3,3788.2,0.0383098]
[1717333286748,0.09480991,3788.3,3788.2,0.0383098]
[1717333293665,2.35790991,3788.3,3788.2,0.0383098]
[1717333295652,2.92884494,3788.3,3788.2,0.0383098]
[1717333296939,5.92884494,3788.3,3788.2,0.0383098]
[1717333299519,8.69784494,3788.3,3788.2,9.8e-06]
[1717333299733,13.58837743,3788.3,3788.2,9.8e-06]
[1717333300422,14.91069577,3788.3,3788.2,9.8e-06]
[1717333300669,14.92500974,3788.3,3788.2,9.8e-06]
[1717333302752,13.60287052,3788.3,3788.2,9.8e-06]
[1717333302954,13.14328452,3788.3,3788.2,9.8e-06]
[1717333303816,10.64710052,3788.3,3788.2,9.8e-06]
[1717333305505,7.87810052,3788.3,3788.2,9.8e-06]
[1717333309119,0.10912388,3788.3,3788.2,9.8e-06]
[1717333309554,0.01431397,3788.3,3788.2,9.8e-06]
[1717333309987,2.63896,3789.4,3788.2,9.8e-06]
[1717333310219,0.08127902,3789.3,3788.2,9.8e-06]
[1717333311322,2.63914,3789.2,3788.2,9.8e-06]
[1717333311841,2.63922,3789.0,3788.2,9.8e-06]
[1717333312347,2.63943,3788.7,3788.2,9.8e-06]
[1717333312639,0.08155512,3788.6,3788.2,9.8e-06]
[1717333313817,2.63958,3788.5,3788.2,9.8e-06]
[1717333314193,0.08155512,3788.4,3788.2,9.8e-06]
[1717333314794,2.6397,3788.3,3788.2,9.8e-06]
[1717333315058,2.72108602,3788.3,3788.2,9.8e-06]
[1717333316748,2.99319462,3788.3,3788.2,9.8e-06]
[1717333317895,5.99319462,3788.3,3788.2,9.8e-06]
[1717333318331,6.56416624,3788.3,3788.2,9.8e-06]
[1717333318540,5.99319462,3788.3,3788.2,9.8e-06]
[1717333324450,8.63289462,3788.3,3788.2,9.8e-06]
[1717333325258,14.61253685,3788.3,3788.2,9.8e-06]
[1717333325553,15.16253685,3788.3,3788.2,9.8e-06]
[1717333325751,17.62353685,3788.3,3788.2,9.8e-06]
[1717333325953,17.66941156,3788.3,3788.2,9.8e-06]
[1717333328621,15.02971156,3788.3,3788.2,9.8e-06]
[1717333330162,12.26071156,3788.3,3788.2,9.8e-06]
[1717333333374,14.90041156,3788.3,3788.2,9.8e-06]
[1717333333681,17.66941156,3788.3,3788.2,9.8e-06]
[1717333334587,21.47047656,3788.3,3788.2,9.8e-06]
[1717333335756,29.47264056,3788.3,3788.2,9.8e-06]
[1717333336175,28.23646156,3788.3,3788.2,9.8e-06]
[1717333336485,29.55860078,3788.3,3788.2,9.8e-06]
[1717333336856,32.19830078,3788.3,3788.2,9.8e-06]
[1717333337172,29.55860078,3788.3,3788.2,9.8e-06]
[1717333338884,32.19830078,3788.3,3788.2,9.8e-06]
[1717333341396,32.46180078,3788.3,3788.2,9.8e-06]
[1717333342497,33.21180078,3788.3,3788.2,9.8e-06]
[1717333342869,68.95614878,3788.3,3788.2,9.8e-06]
[1717333343064,68.89915378,3788.3,3788.2,9.8e-06]
[1717333343470,65.79918178,3788.3,3788.2,9.8e-06]
[1717333343805,62.52979078,3788.3,3788.2,9.8e-06]
[1717333344464,54.89129878,3788.3,3788.2,9.8e-06]
[1717333344897,55.64129878,3788.3,3788.2,9.8e-06]
[1717333345114,58.28099878,3788.3,3788.2,9.8e-06]
[1717333346383,55.64129878,3788.3,3788.2,9.8e-06]
[1717333346585,54.89129878,3788.3,3788.2,9.8e-06]
[1717333346791,51.92495178,3788.3,3788.2,9.8e-06]
[1717333347099,37.84749278,3788.3,3788.2,9.8e-06]
[1717333350203,35.38649278,3788.3,3788.2,9.8e-06]
[1717333350399,36.68501578,3788.3,3788.2,9.8e-06]
[1717333351185,35.57039978,3788.3,3788.2,9.8e-06]
[1717333351384,34.43461478,3788.3,3788.2,9.8e-06]
[1717333351812,32.91840278,3788.3,3788.2,9.8e-06]
[1717333352121,30.83795878,3788.3,3788.2,9.8e-06]
[1717333352912,31.10083483,3788.3,3788.2,9.8e-06]
[1717333353142,25.80735683,3788.3,3788.2,9.8e-06]
[1717333354412,26.35735683,3788.3,3788.2,9.8e-06]
[1717333356234,19.14962683,3788.3,3788.2,9.8e-06]
[1717333356913,38.94774483,3788.3,3788.2,9.8e-06]
[1717333359711,36.30804483,3788.3,3788.2,9.8e-06]
[1717333359911,36.67257883,3788.3,3788.2,9.8e-06]
[1717333361050,34.03287883,3788.3,3788.2,9.8e-06]
[1717333361251,36.67257883,3788.3,3788.2,9.8e-06]
[1717333363814,36.93677883,3788.3,3788.2,9.8e-06]
[1717333365443,37.68677883,3788.3,3788.2,9.8e-06]
[1717333369537,37.68677883,3788.3,3786.6,0.1940038]
[1717333369538,10.69146,3786.7,3786.6,3.8e-06]
[1717333369753,14.58929823,3786.7,3786.6,3.8e-06]
[1717333370005,15.21977259,3786.7,3786.6,3.8e-06]
[1717333370298,18.21977259,3786.7,3786.6,3.8e-06]
[1717333370501,18.00474985,3786.7,3786.6,3.8e-06]
[1717333370659,14.67785385,3786.7,3786.6,3.8e-06]
[1717333372177,14.67785385,3786.7,3786.6,2.4390038]
[1717333372178,3.29223659,3786.7,3786.6,2.4390038]
[1717333372600,2.72129436,3786.7,3786.6,2.4390038]
[1717333373757,5.72129436,3786.7,3786.6,2.4390038]
[1717333378800,6.29239807,3786.7,3786.6,3.8e-06]
[1717333379008,7.59652751,3786.7,3786.6,3.8e-06]
[1717333379712,18.71285651,3786.7,3786.6,3.8e-06]
[1717333379915,20.16350251,3786.7,3786.6,3.8e-06]
[1717333380307,10.78734751,3786.7,3786.6,3.8e-06]
[1717333384706,13.42816751,3786.7,3786.6,3.8e-06]
[1717333385033,16.19716751,3786.7,3786.6,3.8e-06]
[1717333385436,16.19730921,3786.7,3786.6,3.8e-06]
[1717333386647,22.56996843,3786.7,3786.6,3.8e-06]
[1717333386849,13.42830921,3786.7,3786.6,3.8e-06]
[1717333387342,13.42830921,3786.7,3785.6,2.5]
[1717333387343,5.28302,3785.7,3785.6,2.5]
[1717333387546,9.40426541,3785.7,3785.6,2.5]
[1717333387751,9.48410738,3785.7,3785.6,2.5]
[1717333387954,2.64179,3785.3,3785.2,2.4413]
[1717333388327,5.72135197,3785.7,3785.2,2.4413]
[1717333388633,2.64167,3785.5,3785.2,2.4413]
[1717333389037,0.07975905,3785.4,3785.2,2.4413]
[1717333390128,2.64179,3785.3,3785.2,2.4413]
[1717333390627,2.72120338,3785.3,3785.2,2.4413]
[1717333393439,0.07941338,3785.3,3785.2,2.4413]
[1717333393874,2.64157,3785.7,3785.2,2.4413]
[1717333394178,0.07951022,3785.6,3785.2,2.4413]
[1717333395460,7.32,3785.9,3785.2,2.4413]
[1717333395775,0.07963463,3785.8,3785.2,2.4413]
[1717333395975,2.72109463,3785.8,3785.2,2.4413]
[1717333397145,2.64161,3785.6,3785.2,2.4413]
[1717333397646,0.07964155,3785.5,3785.2,2.4413]
[1717333403465,2.64172,3785.4,3785.2,2.4413]
[1717333403647,0.079645,3785.3,3785.2,2.4413]
[1717333406380,2.64187,3785.2,3784.9,2.4522]
[1717333406748,0.0795655,3785.1,3784.9,2.4522]
[1717333406943,2.64235,3784.5,3784.4,2.5]
[1717333407177,2.64235,3784.5,3784.4,4.9522]
[1717333407382,2.72182563,3784.5,3784.4,4.9522]
[1717333408483,0.07947563,3784.5,3784.4,4.9522]
[1717333408689,2.64204,3785.0,3784.4,4.9522]
[1717333408993,2.64217,3784.8,3784.4,4.9522]
[1717333409489,0.07926816,3784.7,3784.4,4.9522]
[1717333411487,2.64194,3785.1,3784.4,4.9522]
[1717333411711,0.07908491,3785.0,3784.4,4.9522]
[1717333411980,2.64208,3784.9,3784.4,4.9522]
[1717333412368,7.32,3785.2,3784.4,4.9522]
[1717333412369,2.64228,3784.7,3784.4,4.9522]
[1717333412869,0.07908491,3784.6,3784.4,4.9522]
[1717333414283,2.64235,3784.5,3784.4,4.9522]
[1717333414781,2.72143491,3784.5,3784.4,4.9522]
[1717333415687,2.72143491,3784.5,3784.4,2.5]
[1717333421411,2.9935784,3784.5,3784.4,2.5]
[1717333423769,2.72143491,3784.5,3784.4,2.5]
[1717333424404,2.62143491,3784.5,3784.4,2.5]
[1717333428386,0.07908491,3784.5,3784.4,2.1484375]
[1717333428892,2.64198,3785.1,3784.5,2.3054]
[1717333429112,2.64198,3785.1,3784.6,2.3054]
[1717333429411,2.64127,3786.1,3784.6,2.3054]
[1717333429412,2.64165,3785.6,3784.6,2.3054]
[1717333429609,0.57129505,3785.5,3784.6,2.3054]
[1717333429806,2.64165,3785.6,3784.7,2.3054]
[1717333431110,3.0,3785.5,3784.7,2.3054]
[1717333431721,2.99735761,3785.5,3784.7,2.3054]
[1717333436403,2.64173,3785.4,3784.7,2.3054]
[1717333438037,0.07675618,3785.3,3784.7,2.3054]
[1717333441606,0.07675618,3785.3,3784.5,2.64231]
[1717333441607,0.07675618,3785.3,3784.4,2.1484375]
[1717333442027,0.57130255,3785.6,3784.4,2.1484375]
[1717333442535,0.07700908,3785.5,3784.4,2.1484375]
[1717333443227,2.3688,3785.4,3784.4,2.1484375]
[1717333443431,2.64222,3784.7,3784.4,2.1484375]
[1717333444047,0.07686707,3784.6,3784.4,2.1484375]
[1717333445345,0.07686707,3784.6,3783.9,2.3144]
[1717333447155,2.64236,3784.5,3783.9,2.3144]
[1717333447311,2.7191162,3784.5,3783.9,2.3144]
[1717333448214,2.7191162,3784.5,3783.6,2.64297]
[1717333452473,2.64252,3784.3,3783.5,2.4522]
[1717333452831,0.07670423,3784.2,3783.2,5.09543]
[1717333459149,2.64263,3784.1,3783.2,5.09543]
[1717333459354,2.71911599,3784.1,3783.2,5.09543]
[1717333461524,2.3036,3783.8,3782.7,0.1276649]
[1717333461647,2.64321,3783.3,3782.7,0.1276649]
[1717333461960,0.07625727,3783.2,3782.7,0.1276649]
[1717333462159,2.64294,3783.7,3782.7,0.1276649]
[1717333462353,0.07625727,3783.1,3782.8,2.64353]
[1717333462582,2.64294,3783.7,3782.8,2.64353]
[1717333462758,0.07617756,3783.0,3782.8,2.64353]
[1717333462961,2.64294,3783.7,3782.8,2.64353]
[1717333463156,0.07605279,3782.9,3782.8,2.64353]
[1717333463354,2.64269,3784.1,3782.8,5.09573]
[1717333463355,3.0,3784.0,3782.8,5.09573]
[1717333463677,3.0,3784.0,3782.7,0.1276649]
[1717333463678,0.07605279,3782.9,3782.7,0.1276649]
[1717333463848,2.64315,3783.4,3782.7,0.1276649]
[1717333464044,0.07600426,3782.8,3782.7,0.1276649]
[1717333464359,0.07601466,3782.8,3782.7,2.7712749]
[1717333464554,7.32,3783.7,3782.7,2.7712749]
[1717333464756,0.07601466,3782.8,3782.7,2.7712749]
[1717333464976,7.32,3783.7,3782.7,2.7712749]
[1717333465187,0.07601466,3782.8,3782.7,2.7712749]
[1717333465491,7.32,3783.7,3782.7,2.7712749]
[1717333465786,0.07601466,3783.6,3782.7,2.7712749]
[1717333467729,0.07601466,3783.6,3783.0,2.64334]
[1717333467991,2.64289,3783.8,3783.0,2.64334]
[1717333468283,0.0760008,3783.5,3783.0,2.64334]
[1717333468454,2.64289,3783.8,3783.0,2.64334]
[1717333468645,0.0760008,3783.4,3783.0,2.64334]
[1717333468848,2.4522,3784.1,3783.0,2.64334]
[1717333469076,0.0760008,3783.3,3783.0,2.64334]
[1717333469346,2.4522,3784.1,3783.2,2.64319]
[1717333470049,10.32,3784.3,3783.5,2.3737]
[1717333470050,7.32,3784.3,3783.5,2.3737]
[1717333470357,2.4522,3784.7,3783.5,2.3737]
[1717333470595,2.4522,3784.7,3783.1,2.3737]
[1717333471943,5.4522,3784.7,3783.1,2.3737]
[1717333472342,2.64229,3784.6,3783.3,2.64314]
[1717333473883,2.64243,3784.4,3783.3,2.64314]
[1717333475173,2.4522,3784.3,3783.3,2.64314]
[1717333475373,0.509463,3784.2,3783.3,2.64314]
[1717333476374,2.4522,3784.3,3783.3,2.655278]
[1717333479813,2.4522,3784.3,3783.6,2.64295]
[1717333480507,2.4522,3784.3,3783.6,2.655088]
[1717333482501,2.4522,3784.6,3783.6,2.655088]
[1717333482819,2.4522,3784.6,3783.9,2.64277]
[1717333482988,0.07607979,3784.5,3783.9,2.64277]
[1717333483495,0.07607979,3784.5,3783.9,2.654908]
[1717333484972,0.07607979,3784.5,3783.9,0.012138]
[1717333485172,0.07607979,3784.5,3782.7,0.1276649]
[1717333485173,2.2858,3782.9,3782.7,0.1276649]
[1717333485375,0.22858,3782.8,3782.7,0.1276649]
[1717333485598,0.30474296,3782.8,3782.7,0.1276649]
[1717333485915,3.87643924,3782.8,3782.7,0.1276649]
[1717333486271,6.51997924,3782.8,3782.7,0.1276649]
[1717333488175,5.94828296,3782.8,3782.7,0.1276649]
[1717333494846,2.94828296,3782.8,3782.7,0.1276649]
[1717333499239,2.71970296,3782.8,3782.7,0.1276649]
[1717333502254,5.09240296,3782.8,3782.7,0.1276649]
[1717333503341,2.71970296,3782.8,3782.7,0.1276649]
[1717333503539,0.07616296,3782.8,3782.7,0.1276649]
[1717333503765,2.64331,3783.2,3782.7,0.1276649]
[1717333504054,0.07484203,3782.8,3782.7,0.1276649]
[1717333504261,2.64341,3783.0,3782.7,0.1276649]
[1717333504416,2.64341,3783.0,3780.7,2.3705]
[1717333504417,2.64488,3780.9,3780.0,0.01]
[1717333504615,1.6932,3782.6,3780.0,0.01]
[1717333504616,2.64522,3780.5,3780.0,0.01]
[1717333504935,5.3727,3780.8,3780.0,0.01]
[1717333504936,2.6453,3780.3,3780.0,0.01]
[1717333505243,5.01813,3780.1,3780.0,0.01]
[1717333505625,8.01813,3780.1,3780.0,0.01]
[1717333505934,8.64318362,3780.1,3780.0,0.01]
[1717333506334,8.64318362,3780.1,3778.9,0.1276649]
[1717333506335,2.64607,3779.2,3778.9,0.1276649]
[1717333506745,0.07496344,3779.1,3778.9,0.1276649]
[1717333506953,2.6462,3779.0,3778.9,0.1276649]
[1717333507151,2.71984064,3779.0,3778.9,0.1276649]
[1717333507868,0.07364064,3779.0,3778.9,0.1276649]
[1717333508372,2.64582,3779.6,3778.9,0.1276649]
[1717333508527,0.0699013,3779.0,3778.9,0.1276649]
[1717333508957,2.64582,3779.6,3778.9,0.1276649]
[1717333509170,0.07006147,3779.0,3778.9,0.1276649]
[1717333509363,2.64582,3779.6,3778.9,0.1276649]
[1717333509532,0.07006147,3779.0,3778.9,0.1276649]
[1717333509859,2.64582,3779.6,3778.9,0.1276649]
[1717333510531,2.64592,3779.4,3778.9,0.1276649]
[1717333510834,0.07006147,3779.5,3778.9,0.1276649]
[1717333511027,0.07009281,3779.3,3778.9,0.1276649]
[1717333511229,2.64562,3779.9,3778.9,0.1276649]
[1717333511754,0.07018679,3779.8,3778.9,0.38511139]
[1717333512562,0.07018679,3779.8,3778.9,0.1276649]
[1717333513893,0.07018679,3779.8,3779.0,2.64619]
[1717333514259,2.64528,3780.4,3779.0,2.64619]
[1717333514456,0.07018679,3779.7,3779.0,2.64619]
[1717333514771,2.64528,3780.4,3779.0,2.64619]
[1717333514959,0.07018679,3779.6,3779.2,2.64603]
[1717333515160,2.64528,3780.4,3779.2,2.64603]
[1717333515361,0.07018679,3779.5,3779.2,2.64603]
[1717333515575,2.64528,3780.4,3779.2,2.64603]
[1717333515771,0.07018679,3779.4,3779.2,3.06019628]
[1717333516067,2.64493,3780.9,3779.7,2.64565]
[1717333516485,0.07033299,3780.8,3779.7,2.64565]
[1717333516968,2.64459,3781.3,3780.0,2.64547]
[1717333517170,0.07033299,3780.7,3780.0,2.64547]
[1717333517404,2.64459,3781.3,3780.0,2.64547]
[1717333517703,0.07033299,3780.6,3780.2,2.64534]
[1717333517900,2.64431,3781.8,3780.2,2.64534]
[1717333518201,0.07054876,3781.7,3780.2,2.64534]
[1717333518499,0.56733464,3781.7,3780.5,2.64512]
[1717333519296,0.07054876,3781.7,3780.8,2.64487]
[1717333519597,2.64397,3782.2,3780.8,2.64487]
[1717333519803,0.07071923,3781.6,3780.8,2.64487]
[1717333520100,3.0,3782.1,3779.9,2.769]
[1717333520301,0.07071923,3781.5,3781.1,2.64467]
[1717333520519,3.0,3782.1,3781.1,2.64467]
[1717333520725,0.0712759,3781.4,3781.1,2.64467]
[1717333521026,2.64397,3782.2,3781.1,3.153817]
[1717333521231,0.0712759,3781.3,3781.1,2.64467]
[1717333521439,2.64397,3782.2,3781.1,2.64467]
[1717333521734,0.0712759,3781.2,3781.1,2.64467]
[1717333521905,2.64369,3782.6,3781.4,2.64446]
[1717333522437,0.07129329,3782.5,3781.4,2.64446]
[1717333525843,0.07129329,3782.5,3781.8,2.64421]
[1717333526056,3.0,3782.9,3781.8,2.64421]
[1717333526941,0.07166539,3782.8,3781.8,2.64421]
[1717333527153,0.57150654,3782.7,3781.8,2.64421]
[1717333527636,0.07166539,3782.6,3781.8,2.64421]
[1717333528154,3.0,3782.9,3782.1,2.64398]
[1717333528325,0.07197483,3782.5,3782.1,2.64398]
[1717333528834,3.0,3783.4,3782.1,2.64398]
[1717333529038,0.07200264,3782.4,3782.1,2.64398]
[1717333529370,3.264308,3783.4,3782.1,2.64398]
[1717333529926,2.64268,3784.1,3781.6,2.769]
[1717333530180,2.64268,3784.1,3782.9,2.64341]
[1717333530379,0.264268,3784.0,3782.9,2.64341]
[1717333530591,0.33414956,3784.0,3782.9,2.64341]
[1717333531337,3.33414956,3784.0,3782.9,2.64341]
[1717333531561,3.38378273,3784.0,3782.9,2.64341]
[1717333535470,2.64281,3783.9,3782.9,2.64341]
[1717333535696,4.99682,3783.6,3782.5,2.64372]
[1717333536201,0.11951473,3783.5,3782.5,2.64372]
[1717333542595,0.11951473,3783.5,3782.8,2.64347]
[1717333542905,7.32,3783.7,3782.8,2.64347]
[1717333543103,0.11967486,3783.4,3783.1,2.64329]
[1717333543304,7.32,3783.7,3783.1,2.64329]
[1717333543606,7.32,3783.7,3783.4,2.64309]
[1717333543906,0.264268,3784.0,3783.4,2.64309]
[1717333543907,0.11972359,3783.6,3783.4,2.64309]
[1717333544285,7.32,3784.4,3783.4,2.64309]
[1717333544607,7.32,3784.4,3783.7,2.6429]
[1717333544772,0.85187327,3784.3,3783.7,2.6429]
[1717333544967,0.11987327,3784.3,3783.7,2.6429]
[1717333545191,5.3538,3784.7,3783.7,2.6429]
[1717333545378,0.11987327,3784.2,3783.7,2.6429]
[1717333545590,5.3538,3784.7,3783.7,2.6429]
[1717333545910,0.1199707,3784.1,3783.7,2.6429]
[1717333546106,4.531599,3784.6,3783.7,2.6429]
[1717333546478,0.11997766,3784.5,3783.7,2.6429]
[1717333548315,0.11997766,3784.5,3784.0,2.64269]
[1717333551230,0.11997766,3784.5,3783.1,2.64331]
[1717333551529,0.46515767,3784.4,3783.8,2.64283]
[1717333552024,0.12033261,3784.3,3783.8,2.64283]
[1717333553221,0.12033261,3784.3,3783.4,2.64306]
[1717333557334,0.12033261,3784.3,3783.6,2.64291]
[1717333557537,0.89627854,3784.3,3783.6,2.64291]
[1717333559337,0.89627854,3784.3,3783.9,2.64277]
[1717333559515,0.12033261,3784.3,3783.9,2.64277]
[1717333559919,3.0,3784.7,3783.9,2.64277]
[1717333560128,0.12044741,3784.2,3783.9,2.64277]
[1717333560309,3.0,3784.7,3783.9,2.64277]
[1717333560509,0.12044741,3784.1,3783.9,2.64277]
[1717333560721,3.0,3784.7,3784.1,2.64257]
[1717333560921,2.2915,3784.5,3782.0,4.96843]
[1717333561103,2.2915,3784.5,3782.4,2.64376]
[1717333561104,2.64308,3783.5,3782.4,2.64376]
[1717333561308,0.493458,3783.4,3782.4,2.64376]
[1717333561530,0.57157073,3783.5,3782.4,2.64376]
[1717333561908,2.64323,3783.3,3782.0,2.64405]
[1717333562612,2.64343,3783.0,3782.0,2.64405]
[1717333562829,0.32150307,3782.9,3782.0,2.64405]
[1717333563417,2.64355,3782.8,3782.0,2.64405]
[1717333563849,2.64355,3782.8,3781.6,2.64434]
[1717333564619,2.2915,3782.7,3781.6,2.64434]
[1717333565694,2.64373,3782.6,3781.6,2.64434]
[1717333566456,2.64373,3782.6,3781.2,2.64463]
[1717333566651,2.64392,3782.3,3781.2,2.64463]
[1717333568294,3.493523,3782.5,3781.1,2.64466]
[1717333568295,2.64386,3782.4,3781.1,2.64466]
[1717333569676,7.813523,3782.5,3781.5,2.64443]
[1717333569677,7.32,3782.5,3781.5,2.64443]
[1717333569858,7.32,3782.5,3781.7,2.64428]
[1717333572967,0.11925361,3782.4,3781.7,2.64428]
[1717333573180,0.11925361,3782.4,3781.3,2.64457]
[1717333573382,2.3796,3782.2,3781.3,2.64457]
[1717333573782,0.11930583,3782.1,3781.3,2.64457]
[1717333573972,0.63359241,3782.1,3781.3,2.64457]
[1717333575302,0.63359241,3782.1,3780.9,2.64484]
[1717333576208,2.64416,3782.0,3780.9,2.64484]
[1717333576619,3.0,3781.9,3780.9,2.64484]
[1717333577122,2.64429,3781.8,3780.5,2.64513]
[1717333577832,0.1191735,3781.7,3780.5,2.64513]
[1717333578175,0.1191735,3781.7,3780.9,2.6448]
[1717333578377,0.1191735,3781.7,3781.0,0.26448]
[1717333578670,3.0,3782.0,3781.0,0.26448]
[1717333578915,0.1191143,3781.6,3780.9,2.6448]
[1717333579082,3.0,3782.0,3780.9,2.6448]
[1717333579289,0.1191143,3781.5,3780.9,2.6448]
[1717333579539,3.0,3782.0,3780.9,2.6448]
[1717333579818,1.534358,3781.9,3780.9,2.6448]
[1717333580323,1.65347927,3781.9,3780.9,2.6448]
[1717333581826,0.11912127,3781.9,3781.2,2.64461]
[1717333582130,2.64398,3782.2,3781.2,2.64461]
[1717333582493,0.11906554,3782.1,3781.5,2.64442]
[1717333582691,3.0,3782.5,3781.5,2.64442]
[1717333582895,0.11906554,3782.0,3781.5,2.64442]
[1717333583102,4.534332,3782.5,3781.5,2.64442]
[1717333583295,0.11906554,3781.9,3781.5,2.64442]
[1717333583587,3.0,3782.5,3781.5,2.64442]
[1717333583889,0.11912474,3782.4,3781.5,2.64442]
[1717333586217,0.11912474,3782.4,3781.8,2.64419]
[1717333586728,0.11928493,3782.3,3781.8,2.64419]
[1717333587033,2.64372,3782.6,3781.8,2.64419]
[1717333587240,0.11933369,3782.2,3781.8,2.64419]
[1717333587412,3.0,3782.6,3781.8,2.64419]
[1717333587820,0.11933369,3782.1,3781.8,2.64419]
[1717333588138,3.0,3782.6,3781.8,2.908609]
[1717333588358,0.11933369,3782.0,3781.8,2.64419]
[1717333588532,3.0,3782.6,3781.8,2.64419]
[1717333588732,0.11933369,3781.9,3781.8,2.64419]
[1717333589025,3.0,3782.6,3781.8,2.64419]
[1717333589326,0.11942419,3781.9,3781.8,2.64419]
[1717333589550,3.0,3782.6,3781.8,2.64419]
[1717333589763,1.032,3782.5,3781.8,2.64419]
[1717333590061,0.11942419,3782.5,3781.8,2.64419]
[1717333590261,2.64355,3782.8,3781.8,2.64419]
[1717333590563,0.11942419,3782.4,3781.8,2.64419]
[1717333590741,3.0,3782.7,3781.8,2.64419]
[1717333590939,0.11942419,3782.3,3781.8,2.64419]
[1717333591149,0.564355,3782.6,3781.8,2.64419]
[1717333591348,0.11942419,3782.2,3781.8,2.64419]
[1717333591520,0.564355,3782.6,3781.8,2.64419]
[1717333592070,0.11942419,3782.5,3781.8,2.64419]
[1717333593370,5.78505711,3782.5,3781.4,2.64448]
[1717333593533,5.15232419,3782.5,3781.4,2.64448]
[1717333594025,3.57170885,3782.4,3781.4,2.64448]
[1717333594225,0.11932322,3782.3,3781.4,2.64448]
[1717333595072,2.64398,3782.2,3781.4,2.64448]
[1717333595277,0.75273863,3782.1,3781.4,2.64448]
[1717333595641,0.75273863,3782.1,3781.0,2.64474]
[1717333598545,2.3891,3781.9,3780.5,2.64514]
[1717333598746,2.3891,3781.9,3780.6,0.264514]
[1717333598747,0.61418386,3781.8,3780.6,0.264514]
[1717333598998,3.73318673,3781.8,3780.5,2.64514]
[1717333599563,3.73318673,3781.8,3779.6,2.64576]
[1717333599564,2.3891,3781.7,3779.6,2.64576]
[1717333599895,2.6445,3781.5,3779.6,2.769]
[1717333600051,2.6445,3781.5,3779.7,2.6846]
[1717333600408,0.11875205,3781.4,3779.7,2.6846]
[1717333600564,0.11875205,3781.4,3779.8,2.64564]
[1717333602386,0.11875205,3781.4,3780.5,2.64508]
[1717333604563,0.11875205,3781.4,3780.8,2.64493]
[1717333604959,3.0,3781.6,3780.8,2.64493]
[1717333605279,5.3891,3781.7,3780.8,2.64493]
[1717333605587,0.97951492,3781.6,3780.8,2.64493]
[1717333605765,3.97951492,3781.6,3780.8,2.64493]
[1717333606784,3.97951492,3781.6,3780.0,2.4832]
[1717333607007,3.97951492,3781.6,3780.6,2.64501]
[1717333609805,2.2847,3781.5,3780.1,2.64541]
[1717333610096,0.68668717,3781.4,3780.1,2.64541]
[1717333610301,2.64488,3780.9,3780.1,2.64541]
[1717333610458,3.0,3780.8,3780.1,2.64541]
[1717333610899,0.11469566,3780.7,3780.1,2.64541]